bitfinex/quotes_SOLUSD_20250822
["timestamp","ask_amount","ask_price","bid_price","bid_amount"]
[1755854314563,0.06,183.81,183.8,79.78578449]
[1755854314764,0.06,183.81,183.8,90.75397886]
[1755854315138,0.06,183.81,183.8,92.93470686]
[1755854316069,0.06,183.81,183.8,92.21470686]
[1755854316367,0.06,183.81,183.8,90.48189654]
[1755854316955,0.06,183.81,183.8,91.20189654]
[1755854317974,0.06,183.81,183.8,87.40720889]
[1755854318158,0.06,183.81,183.8,88.12720889]
[1755854318341,0.06,183.81,183.8,91.20189654]
[1755854319141,0.06,183.81,183.8,90.48189654]
[1755854325971,0.06,183.81,183.8,91.20189654]
[1755854328256,0.06,183.81,183.8,88.12720889]
[1755854328458,0.06,183.81,183.8,91.20189654]
[1755854329982,0.06,183.81,183.8,91.19189654]
[1755854334671,0.06,183.81,183.8,104.78749055]
[1755854335960,1e-08,183.81,183.8,281.70156019]
[1755854336289,1e-08,183.81,183.8,255.15749055]
[1755854336580,0.06,183.83,183.82,55.96559401]
[1755854336787,1e-08,183.83,183.82,215.32871969]
[1755854336962,1e-08,183.83,183.82,215.49470925]
[1755854337291,1e-08,183.83,183.82,217.67472325]
[1755854340308,1e-08,183.84,183.83,33.3246048]
[1755854340584,1e-08,183.84,183.83,34.57858565]
[1755854341206,1e-08,183.84,183.83,168.57858565]
[1755854341379,1e-08,183.84,183.83,173.47441331]
[1755854347100,0.2,183.88,183.87,92.44137848]
[1755854347269,0.2,183.88,183.87,137.51606613]
[1755854347681,0.2,183.88,183.87,139.69596213]
[1755854349000,0.88,183.88,183.87,145.13458724]
[1755854350116,0.2,183.88,183.87,145.13458724]
[1755854350977,0.2,183.88,183.87,145.84458724]
[1755854351185,0.2,183.88,183.87,145.13458724]
[1755854351383,0.2,183.88,183.87,145.84458724]
[1755854351798,0.2,183.88,183.87,142.05989959]
[1755854352003,0.2,183.88,183.87,145.13458724]
[1755854353300,0.88,183.88,183.87,142.05989959]
[1755854353603,0.88,183.88,183.87,145.13458724]
[1755854354007,0.2,183.88,183.87,145.13458724]
[1755854354308,0.2,183.88,183.87,145.84458724]
[1755854354506,0.2,183.88,183.87,145.13458724]
[1755854355492,0.2,183.88,183.87,145.84458724]
[1755854356006,0.2,183.88,183.87,145.13458724]
[1755854356397,0.2,183.88,183.87,145.84458724]
[1755854357811,0.2,183.88,183.87,145.13458724]
[1755854358891,0.2,183.88,183.87,145.80458724]
[1755854361099,0.2,183.88,183.87,142.72989959]
[1755854361411,0.2,183.88,183.87,145.80458724]
[1755854361616,0.2,183.88,183.87,100.72989959]
[1755854361821,0.2,183.88,183.87,145.78458724]
[1755854364410,0.2,183.88,183.87,145.11458724]
[1755854364810,0.73,183.9,183.89,13.59559401]
[1755854365010,0.73,183.9,183.89,55.57559401]
[1755854365898,0.73,183.9,183.89,19.03362761]
[1755854366098,0.73,183.9,183.89,61.01362761]
[1755854367822,0.73,183.9,183.89,13.87991715]
[1755854368020,0.73,183.9,183.89,0.14216157]
[1755854368331,0.73,183.9,183.89,120.34146133]
[1755854368623,0.73,183.9,183.89,78.36146133]
[1755854368838,2.910371,183.9,183.89,78.36146133]
[1755854369004,8.3481089,183.9,183.89,78.36146133]
[1755854369831,8.3481089,183.9,183.87,41.98]
[1755854370011,8.3481089,183.9,183.82,0.03]
[1755854370012,1.21188793,183.89,183.82,0.03]
[1755854370217,1.21188793,183.89,183.83,41.98]
[1755854370524,0.67,183.88,183.83,41.98]
[1755854370714,0.54188793,183.87,183.83,41.98]
[1755854370919,0.67,183.86,183.83,41.98]
[1755854371207,30.282612,183.86,183.82,0.03]
[1755854371509,0.54188793,183.85,183.82,0.03]
[1755854371712,5.43951261,183.84,183.82,0.03]
[1755854372023,6.65111013,183.85,183.82,0.03]
[1755854372200,0.67,183.83,183.82,0.03]
[1755854374309,0.67,183.85,183.82,0.03]
[1755854374812,0.67,183.84,183.82,0.03]
[1755854375201,0.67,183.83,183.82,0.03]
[1755854375708,0.67,183.84,183.82,0.03]
[1755854376631,0.67,183.83,183.82,78.39146133]
[1755854377227,0.67,183.85,183.82,78.39146133]
[1755854377412,0.67,183.84,183.82,78.39146133]
[1755854379204,0.67,183.84,183.82,120.37146133]
[1755854379925,3.612612,183.86,183.82,120.37146133]
[1755854380115,0.67,183.85,183.82,120.37146133]
[1755854381127,4.15449993,183.86,183.82,120.37146133]
[1755854381314,0.67,183.85,183.82,120.37146133]
[1755854381514,0.67,183.84,183.82,120.37146133]
[1755854382423,0.67,183.84,183.82,78.39146133]
[1755854382609,0.67,183.83,183.82,78.39146133]
[1755854384135,5.43952,183.84,183.82,78.39146133]
[1755854384322,0.67,183.84,183.82,78.39146133]
[1755854384530,11.54876492,183.85,183.82,78.39146133]
[1755854385543,0.67,183.84,183.82,78.39146133]
[1755854385834,0.67,183.83,183.82,78.39146133]
[1755854386051,26.67,183.83,183.82,0.03]
[1755854386338,37.548765,183.83,183.82,0.03]
[1755854386540,42.98857351,183.83,183.82,0.03]
[1755854388923,47.41133547,183.83,183.82,0.03]
[1755854389122,47.41133547,183.83,183.8,0.03]
[1755854389123,51.01176138,183.83,183.8,0.03]
[1755854389431,1.22188793,183.82,183.8,0.03]
[1755854389825,0.68,183.81,183.8,0.03]
[1755854390538,2.861918,183.81,183.8,0.03]
[1755854391332,8.30231841,183.81,183.8,0.03]
[1755854395022,50.28231841,183.81,183.8,0.03]
[1755854401951,13.59559401,183.8,183.78,1e-08]
[1755854402124,26.0,183.77,183.71,0.03]
[1755854402326,26.0,183.73,183.71,0.03]
[1755854402625,26.54188793,183.72,183.71,0.03]
[1755854402832,28.72463893,183.72,183.71,0.03]
[1755854403243,29.40463893,183.72,183.71,0.03]
[1755854403445,28.72463893,183.72,183.71,0.03]
[1755854404427,34.16770446,183.72,183.71,0.03]
[1755854404642,34.16770446,183.72,183.71,0.75]
[1755854404851,34.16770446,183.72,183.71,0.03]
[1755854405030,31.98495346,183.72,183.71,0.03]
[1755854405249,34.84806246,183.72,183.69,0.03]
[1755854405536,42.84,183.71,183.69,0.03]
[1755854405755,0.54188793,183.7,183.69,0.03]
[1755854406328,6.66554606,183.7,183.69,0.03]
[1755854406957,5.98554606,183.7,183.69,0.03]
[1755854410453,6.66554606,183.7,183.69,0.03]
[1755854410754,5.98554606,183.7,183.69,0.03]
[1755854412065,48.24554606,183.7,183.69,0.03]
[1755854412938,50.42889206,183.7,183.69,0.03]
[1755854416044,50.42889206,183.7,183.69,0.75]
[1755854416578,50.42889206,183.7,183.69,0.03]
[1755854416872,50.40889206,183.7,183.69,0.03]
[1755854418682,50.40889206,183.7,183.67,0.03]
[1755854418683,26.0,183.68,183.67,0.03]
[1755854418844,68.24,183.68,183.66,1e-08]
[1755854419051,26.0,183.66,183.65,0.03]
[1755854419347,68.56,183.66,183.65,0.03]
[1755854419740,69.27,183.66,183.65,0.03]
[1755854420147,74.71484373,183.66,183.65,0.03]
[1755854421177,39.87991715,183.63,183.61,0.1]
[1755854421365,26.0,183.59,183.57,0.68]
[1755854421549,43.08188793,183.58,183.57,0.68]
[1755854421745,58.47774334,183.58,183.56,0.1]
[1755854421945,0.71,183.57,183.56,0.1]
[1755854422154,32.15751321,183.57,183.56,0.1]
[1755854422457,32.15751321,183.57,183.5,0.68]
[1755854422458,26.0,183.55,183.5,0.68]
[1755854422658,26.0,183.55,183.47,0.68]
[1755854422659,26.0,183.52,183.47,0.68]
[1755854422838,26.0,183.5,183.47,0.68]
[1755854423044,0.54188793,183.49,183.47,0.68]
[1755854424264,0.54188793,183.49,183.48,0.68]
[1755854424453,0.54188793,183.49,183.48,0.18]
[1755854425252,26.0,183.5,183.48,0.18]
[1755854425447,0.54188793,183.52,183.48,0.18]
[1755854426313,5.99097728,183.52,183.44,0.28432314]
[1755854426446,5.99097728,183.52,183.45,0.68]
[1755854426780,0.54188793,183.52,183.45,0.68]
[1755854426939,5.99090408,183.52,183.45,0.68]
[1755854428250,5.99090408,183.52,183.45,6.13101658]
[1755854428453,5.99090408,183.52,183.46,0.68]
[1755854430264,0.54188793,183.52,183.46,6.13067502]
[1755854430467,5.99102422,183.52,183.47,0.68]
[1755854430784,0.54188793,183.52,183.47,0.68]
[1755854431265,5.99103908,183.52,183.47,0.68]
[1755854431863,6.70103908,183.52,183.48,0.68]
[1755854432362,20.29663308,183.52,183.49,0.68]
[1755854434067,20.29663308,183.52,183.47,0.68]
[1755854434475,20.29663308,183.52,183.48,0.68]
[1755854435290,20.29663308,183.52,183.49,0.68]
[1755854435600,0.54188793,183.52,183.5,0.68]
[1755854435798,5.99096436,183.52,183.5,0.68]
[1755854436089,5.99096436,183.52,183.45,5.45107658]
[1755854436390,0.54188793,183.52,183.5,0.68]
[1755854436586,5.99088773,183.52,183.5,0.68]
[1755854437191,6.70088773,183.52,183.48,0.68]
[1755854437488,5.99088773,183.52,183.49,0.68]
[1755854437690,5.99088773,183.52,183.45,5.45107658]
[1755854437999,6.70088773,183.52,183.47,0.68]
[1755854438382,5.99088773,183.52,183.47,0.68]
[1755854438582,6.05088773,183.52,183.47,0.68]
[1755854439295,0.60188793,183.52,183.47,6.13042073]
[1755854439494,0.60188793,183.52,183.48,0.68]
[1755854440177,6.05092764,183.52,183.48,0.68]
[1755854440368,6.76092764,183.52,183.48,0.68]
[1755854441408,0.71,183.51,183.48,0.68]
[1755854442105,6.05092764,183.52,183.48,0.68]
[1755854442476,6.76092764,183.52,183.48,0.68]
[1755854442688,6.76092764,183.52,183.49,0.68]
[1755854443502,0.60188793,183.52,183.49,0.68]
[1755854444305,1.31188793,183.52,183.48,0.68]
[1755854444670,1.31188793,183.52,183.47,5.45039575]
[1755854444671,6.76089357,183.52,183.49,0.68]
[1755854445000,0.60188793,183.52,183.5,0.68]
[1755854446393,0.60188793,183.52,183.48,0.68]
[1755854446583,1.31188793,183.52,183.49,0.68]
[1755854447191,6.76094888,183.52,183.49,0.68]
[1755854447709,0.60188793,183.52,183.46,0.31432314]
[1755854447891,0.06,183.52,183.5,0.67]
[1755854448295,0.06,183.52,183.51,0.67]
[1755854449815,0.06,183.52,183.51,6.11929431]
[1755854450909,0.06,183.52,183.51,10.92536731]
[1755854451114,0.06,183.52,183.51,24.52096132]
[1755854451289,0.06,183.52,183.51,24.80528446]
[1755854452318,0.06,183.52,183.51,14.54991715]
[1755854452506,0.06,183.52,183.49,6.11982566]
[1755854452691,0.06,183.52,183.5,0.67]
[1755854453318,0.06,183.52,183.51,0.67]
[1755854456920,0.06,183.52,183.49,19.04537779]
[1755854457129,0.06,183.52,183.5,0.67]
[1755854458305,0.06,183.52,183.49,23.85145079]
[1755854458625,0.06,183.52,183.5,0.67]
[1755854459215,0.06,183.52,183.5,5.476073]
[1755854459521,0.06,183.52,183.51,0.67]
[1755854459911,0.06,183.52,183.49,19.71537779]
[1755854460101,0.06,183.52,183.51,0.67]
[1755854460516,0.06,183.52,183.51,5.476073]
[1755854460711,0.06,183.52,183.5,4.806073]
[1755854461012,0.06,183.52,183.48,43.34432314]
[1755854461204,0.67,183.51,183.48,42.39]
[1755854461620,0.67,183.5,183.48,42.39]
[1755854461932,5.44931671,183.51,183.48,42.39]
[1755854462105,0.67,183.5,183.48,42.39]
[1755854462312,0.67,183.5,183.48,0.03]
[1755854462624,6.17910159,183.52,183.48,0.7]
[1755854462929,0.67,183.51,183.48,0.7]
[1755854463431,0.67,183.51,183.48,0.03]
[1755854464018,5.44932973,183.51,183.48,0.03]
[1755854464215,0.67,183.51,183.48,0.03]
[1755854464817,0.67,183.51,183.48,0.7]
[1755854465332,0.67,183.51,183.48,79.06146133]
[1755854465527,6.11931107,183.51,183.48,78.39146133]
[1755854466931,1.21188793,183.5,183.48,0.03]
[1755854467323,0.67,183.49,183.48,0.03]
[1755854468233,6.11988827,183.49,183.48,0.03]
[1755854468538,8.30550127,183.49,183.48,0.03]
[1755854469920,6.11988827,183.49,183.48,0.03]
[1755854470615,0.67,183.49,183.48,0.03]
[1755854471234,6.11988827,183.49,183.48,0.03]
[1755854472732,9.73091626,183.49,183.48,0.03]
[1755854472929,11.91664826,183.49,183.48,0.03]
[1755854473143,15.9286086,183.49,183.48,0.03]
[1755854473839,29.52420261,183.49,183.48,0.03]
[1755854474028,29.80852575,183.49,183.48,0.03]
[1755854474338,29.80852575,183.49,183.46,0.03]
[1755854474339,26.0,183.47,183.46,0.03]
[1755854474558,26.0,183.47,183.42,0.03]
[1755854474559,26.0,183.45,183.42,0.03]
[1755854474833,26.55462468,183.47,183.42,0.0250021]
[1755854474834,4.50983127,183.43,183.42,0.0250021]
[1755854475045,12.1328196,183.43,183.42,0.0250021]
[1755854475231,12.71767994,183.43,183.42,0.0250021]
[1755854475433,8.29298833,183.43,183.42,0.0250021]
[1755854475610,47.94196034,183.43,183.42,0.0250021]
[1755854475812,51.55298833,183.43,183.42,0.0250021]
[1755854476214,3.61102799,183.43,183.42,0.0250021]
[1755854476441,26.0,183.43,183.42,0.0250021]
[1755854477519,26.0,183.44,183.42,0.6950021]
[1755854477719,0.54188793,183.45,183.42,0.6950021]
[1755854478324,0.54188793,183.46,183.42,6.14680929]
[1755854478627,43.82188793,183.48,183.43,0.67]
[1755854480431,43.82188793,183.48,183.43,6.12156671]
[1755854480747,43.82188793,183.48,183.44,0.67]
[1755854480941,43.82188793,183.48,183.45,0.67]
[1755854481451,43.82188793,183.48,183.43,5.45156671]
[1755854481452,43.82188793,183.48,183.46,0.67]
[1755854481624,74.691567,183.51,183.43,10.25763971]
[1755854481819,0.54188793,183.5,183.43,5.45156671]
[1755854482026,1.20188793,183.5,183.44,0.67]
[1755854482445,6.65170322,183.5,183.44,0.67]
[1755854483146,0.66,183.49,183.44,0.67]
[1755854483333,0.54188793,183.48,183.45,0.67]
[1755854485030,0.54188793,183.48,183.46,0.67]
[1755854485252,0.54188793,183.5,183.47,0.67]
[1755854485429,16.389413,183.51,183.47,0.67]
[1755854485629,0.60188793,183.52,183.47,0.67]
[1755854485946,5.40796093,183.52,183.47,0.67]
[1755854486549,5.40796093,183.52,183.47,6.12027704]
[1755854486750,5.40796093,183.52,183.48,0.67]
[1755854486937,5.40796093,183.52,183.47,5.45027704]
[1755854486938,5.40796093,183.52,183.49,0.67]
[1755854487258,0.06,183.52,183.49,0.67]
[1755854488756,0.06,183.52,183.49,6.11960359]
[1755854489058,0.06,183.52,183.5,0.67]
[1755854489859,0.06,183.52,183.49,5.44960359]
[1755854490072,0.06,183.52,183.51,0.67]
[1755854490858,0.06,183.52,183.49,0.67]
[1755854491354,0.06,183.52,183.5,0.67]
[1755854492057,0.66,183.51,183.47,80.47]
[1755854492353,0.66,183.51,183.47,0.67]
[1755854493054,0.66,183.51,183.46,5.45062393]
[1755854493055,4.20038493,183.52,183.48,0.67]
[1755854493243,4.20038493,183.52,183.49,0.67]
[1755854495458,3.658497,183.52,183.5,0.67]
[1755854495956,0.06,183.52,183.5,0.67]
[1755854497155,0.06,183.52,183.51,0.67]
[1755854497961,0.06,183.52,183.49,0.67]
[1755854498759,0.06,183.52,183.5,0.67]
[1755854499351,0.06,183.52,183.48,5.45012425]
[1755854499542,0.06,183.52,183.51,0.67]
[1755854502565,0.06,183.52,183.49,0.67]
[1755854504051,0.06,183.52,183.48,5.45014978]
[1755854504351,0.06,183.52,183.5,0.67]
[1755854514275,0.06,183.52,183.51,0.66]
[1755854515070,0.06,183.52,183.49,0.66]
[1755854515447,0.06,183.52,183.5,0.66]
[1755854515774,0.06,183.52,183.5,80.46]
[1755854516262,0.06,183.52,183.51,0.66]
[1755854518800,0.06,183.52,183.51,80.46]
[1755854519164,0.06,183.52,183.51,85.90929431]
[1755854520473,0.06,183.52,183.51,104.59528446]
[1755854520790,0.06,183.52,183.51,99.78921146]
[1755854521086,0.06,183.52,183.51,104.59528446]
[1755854521595,0.06,183.52,183.51,147.39528446]
[1755854521997,0.06,183.52,183.51,147.37528446]
[1755854524409,0.06,183.52,183.51,142.56921146]
[1755854524572,0.06,183.52,183.51,147.37528446]
[1755854527095,0.06,183.52,183.51,137.11991715]
[1755854528610,0.06,183.52,183.51,142.56921146]
[1755854529300,0.06,183.52,183.51,147.37528446]
[1755854530896,0.06,183.52,183.51,142.56921146]
[1755854531086,0.06,183.52,183.51,147.37528446]
[1755854534509,0.06,183.52,183.51,152.18135746]
[1755854534802,0.06,183.52,183.51,147.37528446]
[1755854535394,0.06,183.52,183.51,152.18135746]
[1755854535696,0.06,183.52,183.51,147.37528446]
[1755854536083,0.06,183.52,183.51,99.78921146]
[1755854536279,0.06,183.52,183.51,147.25528446]
[1755854536899,0.06,183.52,183.51,93.53775558]
[1755854537092,0.78,183.52,183.51,42.66]
[1755854537297,0.06,183.52,183.51,42.66]
[1755854537495,0.78,183.52,183.51,42.66]
[1755854537884,0.06,183.52,183.51,42.66]
[1755854538397,0.06,183.52,183.51,43.36]
[1755854538596,0.06,183.52,183.51,42.66]
[1755854539088,0.06,183.52,183.51,48.10929431]
[1755854539800,0.06,183.52,183.51,42.66]
[1755854540685,0.06,183.52,183.51,48.10929431]
[1755854541077,0.06,183.52,183.51,48.80929431]
[1755854541281,0.06,183.52,183.51,62.68921146]
[1755854542201,0.06,183.52,183.51,142.48921146]
[1755854542700,0.06,183.52,183.51,99.82921146]
[1755854542887,0.06,183.52,183.51,142.44921146]
[1755854543082,0.06,183.52,183.51,147.25528446]
[1755854543304,0.06,183.52,183.51,142.44921146]
[1755854543881,0.06,183.52,183.51,99.82921146]
[1755854544099,0.06,183.52,183.51,142.42921146]
[1755854544682,0.06,183.52,183.51,147.23528446]
[1755854545701,0.06,183.52,183.51,149.41922646]
[1755854545889,0.06,183.52,183.51,154.22529946]
[1755854546290,0.06,183.52,183.51,149.41922646]
[1755854547880,0.06,183.52,183.51,144.61315346]
[1755854548080,0.06,183.54,183.53,79.74]
[1755854548297,0.06,183.54,183.53,122.60432314]
[1755854548502,0.06,183.54,183.53,128.11039614]
[1755854549888,0.06,183.54,183.53,133.55909662]
[1755854550380,0.06,183.54,183.53,307.15469063]
[1755854552927,0.78,183.54,183.53,233.06861763]
[1755854553089,0.78,183.54,183.53,232.92645606]
[1755854553287,0.78,183.54,183.53,275.60861763]
[1755854553489,0.78,183.54,183.53,93.61991715]
[1755854553687,0.78,183.54,183.53,136.17991715]
[1755854555117,0.78,183.54,183.53,122.3]
[1755854556906,0.78,183.54,183.53,135.89559401]
[1755854558407,0.78,183.54,183.53,79.74]
[1755854558606,6.22840361,183.54,183.49,13.59559401]
[1755854558828,6.22840361,183.54,183.48,90.6051594]
[1755854558829,0.72,183.53,183.51,13.59559401]
[1755854559041,0.72,183.53,183.52,42.52]
[1755854559341,5.50840361,183.54,183.52,42.52]
[1755854559715,0.06,183.54,183.52,42.52]
[1755854559911,0.72,183.53,183.52,42.52]
[1755854560409,0.72,183.53,183.5,42.5]
[1755854561023,0.72,183.53,183.49,42.5]
[1755854561755,6.16896063,183.53,183.49,42.5]
[1755854561956,9.05961043,183.53,183.49,42.5]
[1755854562143,0.72,183.52,183.49,42.5]
[1755854563766,6.16909817,183.52,183.49,42.5]
[1755854563961,0.72,183.51,183.49,42.5]
[1755854564257,9.05942337,183.53,183.49,13.59559401]
[1755854564561,0.72,183.5,183.48,42.53]
[1755854565835,0.72,183.5,183.48,122.27]
[1755854566339,0.72,183.51,183.48,122.27]
[1755854568834,0.67,183.51,183.48,128.38015548]
[1755854569558,4.82253773,183.53,183.48,128.38015548]
[1755854569864,0.67,183.52,183.48,128.38015548]
[1755854570065,5.509085,183.54,183.49,14.25559401]
[1755854570369,0.06,183.52,183.51,13.59559401]
[1755854570664,0.06,183.52,183.51,14.25559401]
[1755854570869,0.06,183.52,183.51,19.70488832]
[1755854571733,0.06,183.52,183.51,99.72921146]
[1755854571936,0.06,183.52,183.51,86.13361745]
[1755854572136,0.06,183.52,183.51,99.72921146]
[1755854573570,0.73,183.52,183.48,0.03]
[1755854573876,1.21188793,183.51,183.48,0.03]
[1755854574166,11.732404,183.51,183.48,0.03]
[1755854574466,0.67,183.5,183.48,0.03]
[1755854575169,0.67,183.49,183.48,0.03]
[1755854578053,32.11988827,183.49,183.48,0.03]
[1755854578253,35.72340654,183.49,183.48,0.03]
[1755854580245,3.60351827,183.49,183.48,0.03]
[1755854580454,26.0,183.47,183.46,0.03]
[1755854580784,29.60351827,183.47,183.46,0.03]
[1755854581075,30.27351827,183.47,183.46,0.03]
[1755854581451,9.72400063,183.47,183.46,0.03]
[1755854581652,6.12048236,183.47,183.46,0.03]
[1755854581885,9.72400063,183.47,183.46,0.03]
[1755854582392,5.78925027,183.47,183.46,0.03]
[1755854582555,28.185732,183.47,183.46,0.03]
[1755854582762,2.185732,183.47,183.46,0.03]
[1755854583259,2.855732,183.47,183.46,0.03]
[1755854583579,2.185732,183.47,183.46,0.03]
[1755854587284,2.185732,183.47,183.46,0.69]
[1755854588078,26.0,183.48,183.46,0.69]
[1755854588660,26.0,183.48,183.46,0.03]
[1755854588977,26.0,183.48,183.46,0.69]
[1755854590066,26.0,183.48,183.46,0.03]
[1755854590488,26.0,183.48,183.46,0.69]
[1755854590674,26.0,183.48,183.46,0.03]
[1755854590880,26.0,183.48,183.47,0.66]
[1755854591791,0.06,183.49,183.47,6.11048236]
[1755854592163,0.06,183.49,183.48,0.66]
[1755854594686,0.73,183.49,183.46,0.03]
[1755854594889,0.54188793,183.48,183.46,0.03]
[1755854595078,6.01737193,183.48,183.46,0.03]
[1755854595278,0.67,183.47,183.46,0.03]
[1755854595870,9.61457959,183.48,183.46,0.03]
[1755854596268,10.28457959,183.48,183.46,0.03]
[1755854597293,15.734795,183.48,183.46,0.03]
[1755854597593,12.13758734,183.48,183.46,0.03]
[1755854598676,6.66210334,183.48,183.46,0.03]
[1755854598880,10.26319865,183.48,183.46,0.03]
[1755854599298,26.0,183.47,183.46,0.03]
[1755854599679,2.185614,183.47,183.46,0.72]
[1755854599889,0.60188793,183.49,183.46,0.03]
[1755854600198,1.28188793,183.49,183.46,0.03]
[1755854600499,5.449669,183.48,183.46,0.03]
[1755854602579,0.06,183.49,183.47,0.69]
[1755854602809,2.245374,183.49,183.47,0.69]
[1755854602978,2.245374,183.49,183.48,0.69]
[1755854603307,2.245374,183.49,183.48,19.73577931]
[1755854603308,0.06,183.49,183.48,19.73577931]
[1755854603475,0.06,183.49,183.48,20.02010245]
[1755854609917,0.06,183.49,183.48,13.87991715]
[1755854610108,0.74,183.49,183.47,79.74]
[1755854610321,2.925255,183.49,183.47,79.74]
[1755854610708,0.68,183.48,183.47,79.74]
[1755854611307,2.245255,183.49,183.47,79.74]
[1755854611517,0.06,183.49,183.47,79.74]
[1755854612218,0.06,183.49,183.47,85.88047071]
[1755854612519,0.06,183.49,183.48,14.28559401]
[1755854612833,0.06,183.49,183.48,14.56991715]
[1755854613124,0.06,183.49,183.48,20.02010245]
[1755854613322,0.06,183.49,183.48,93.61991715]
[1755854614539,0.06,183.49,183.48,93.33559401]
[1755854615631,0.06,183.49,183.48,98.78577931]
[1755854616428,0.06,183.49,183.48,142.14577931]
[1755854617934,0.06,183.49,183.48,136.69559401]
[1755854618518,0.74,183.49,183.48,79.74]
[1755854619120,0.74,183.49,183.47,43.32]
[1755854619716,4.34494419,183.49,183.47,43.32]
[1755854619922,0.68,183.48,183.47,43.32]
[1755854620124,0.68,183.48,183.46,0.03]
[1755854620344,0.68,183.47,183.46,0.03]
[1755854621684,14.80138993,183.49,183.46,0.03]
[1755854621962,4.29086495,183.48,183.46,0.03]
[1755854622169,0.54188793,183.47,183.46,0.03]
[1755854622349,1.22188793,183.47,183.46,0.03]
[1755854622745,42.02327793,183.47,183.46,0.03]
[1755854623558,40.80139,183.47,183.46,0.03]
[1755854623758,14.80139,183.47,183.46,0.03]
[1755854624067,6.73206102,183.49,183.46,0.03]
[1755854624258,5.481344,183.48,183.46,0.03]
[1755854624564,9.77312198,183.48,183.46,0.03]
[1755854624736,0.68,183.47,183.46,0.03]
[1755854624940,27.22188793,183.47,183.46,0.03]
[1755854625160,39.92678791,183.47,183.46,0.03]
[1755854625864,45.37727027,183.47,183.46,0.03]
[1755854633348,44.69727027,183.47,183.46,0.03]
[1755854633772,45.38727027,183.47,183.46,0.03]
[1755854634080,44.69727027,183.47,183.46,0.03]
[1755854634250,39.24678791,183.47,183.46,0.03]
[1755854634576,44.69727027,183.47,183.46,0.03]
[1755854634746,12.70489998,183.47,183.46,0.03]
[1755854634950,12.70489998,183.47,183.46,0.72]
[1755854635451,9.093122,183.47,183.46,0.72]
[1755854638481,9.093122,183.47,183.46,0.03]
[1755854638984,9.093122,183.47,183.46,0.72]
[1755854640474,9.093122,183.47,183.46,0.03]
[1755854640875,9.093122,183.47,183.46,0.72]
[1755854642390,9.093122,183.47,183.46,0.03]
[1755854643594,10.32500993,183.47,183.46,0.03]
[1755854643809,15.77549229,183.47,183.46,0.03]
[1755854643996,19.38193533,183.47,183.46,0.03]
[1755854644386,12.69956504,183.47,183.46,0.03]
[1755854644577,9.093122,183.47,183.46,0.03]
[1755854644981,9.093122,183.47,183.46,0.72]
[1755854645590,26.0,183.47,183.46,0.72]
[1755854645774,26.0,183.47,183.46,0.03]
[1755854646087,29.60605504,183.47,183.46,0.03]
[1755854646486,35.7465374,183.47,183.46,0.03]
[1755854649320,29.60605504,183.47,183.46,0.72]
[1755854649613,29.60605504,183.47,183.46,0.03]
[1755854654294,35.0565374,183.47,183.46,0.03]
[1755854655718,35.7465374,183.47,183.46,0.03]
[1755854657897,35.75252323,183.47,183.46,0.03]